bitfinex/quotes_BTCUSD_20210101
["timestamp","ask_amount","ask_price","bid_price","bid_amount"]
[1609527230368,1.37351001,29120.0,29111.0,0.30680302]
[1609527230752,0.1374,29119.0,29111.0,0.30680302]
[1609527231160,7.46380526,29112.0,29097.0,0.6876]
[1609527231439,0.33180302,29111.0,29091.0,0.4884]
[1609527231600,0.33180302,29110.0,29092.0,1.0]
[1609527231907,7.46380526,29112.0,29092.0,1.5152]
[1609527231908,0.5103,29105.0,29092.0,1.5152]
[1609527232097,0.5103,29105.0,29093.0,1.0]
[1609527232302,0.33555432,29111.0,29093.0,1.175]
[1609527232503,0.38555432,29111.0,29094.0,1.313046]
[1609527232705,0.38555432,29111.0,29095.0,0.95]
[1609527232706,0.0037513,29111.0,29095.0,0.95]
[1609527232898,0.0037513,29111.0,29096.0,0.363046]
[1609527233100,0.0037513,29111.0,29097.0,0.95]
[1609527233101,0.00402294,29111.0,29097.0,0.95]
[1609527233357,0.00402294,29111.0,29098.0,0.23]
[1609527233554,0.00402294,29111.0,29099.0,0.54951]
[1609527233756,0.0037513,29111.0,29100.0,0.3768]
[1609527233966,0.0037513,29111.0,29100.0,0.5768]
[1609527234154,0.0037513,29111.0,29101.0,0.5768]
[1609527234353,0.0037513,29111.0,29102.0,0.5768]
[1609527234553,0.0037513,29111.0,29101.0,0.11012]
[1609527234753,0.0037513,29111.0,29101.0,0.68692]
[1609527234954,0.64448294,29114.0,29101.0,0.68192]
[1609527235190,0.6232,29113.0,29101.0,0.67231466]
[1609527235394,0.12648294,29115.0,29102.0,1.25]
[1609527235588,0.12648294,29115.0,29103.0,0.455]
[1609527235795,0.12648294,29115.0,29102.0,0.2]
[1609527235994,0.12648294,29115.0,29100.0,0.2]
[1609527236188,0.12648294,29115.0,29098.0,0.5151]
[1609527236509,0.5152,29107.0,29091.0,0.4807]
[1609527236691,0.5152,29107.0,29090.0,1.375]
[1609527236899,0.5152,29107.0,29091.0,1.0]
[1609527237097,0.5152,29107.0,29091.0,1.2]
[1609527237299,0.5152,29107.0,29092.0,1.0]
[1609527237485,0.5152,29107.0,29092.0,1.2]
[1609527237686,0.5152,29107.0,29093.0,0.995]
[1609527238297,0.5152,29107.0,29090.0,1.6902]
[1609527238495,0.5152,29107.0,29087.0,0.6869]
[1609527238695,0.5016395,29107.0,29088.0,0.995]
[1609527238898,0.5016395,29107.0,29087.0,1.6819]
[1609527239096,0.33180302,29106.0,29088.0,0.995]
[1609527239288,0.00337619,29091.0,29088.0,0.995]
[1609527239495,0.5153,29099.0,29089.0,0.25]
[1609527239691,0.5153,29099.0,29089.0,0.31870167]
[1609527240097,0.5012888,29099.0,29090.0,0.51179324]
[1609527240294,0.4971703,29099.0,29090.0,0.51179324]
[1609527240824,0.4921663,29099.0,29090.0,0.51179324]
[1609527241019,0.4921663,29099.0,29090.0,1.50679324]
[1609527241222,0.4921663,29099.0,29091.0,0.8067804]
[1609527241520,0.4921663,29099.0,29090.0,0.5467804]
[1609527241718,0.4921663,29099.0,29085.0,1.0117804]
[1609527241919,0.4921663,29099.0,29086.0,1.5417804]
[1609527242123,0.4921663,29099.0,29087.0,0.79679292]
[1609527242317,0.4921663,29099.0,29088.0,0.50914786]
[1609527242527,0.4921663,29099.0,29087.0,0.3]
[1609527242724,0.4921663,29099.0,29088.0,0.5467804]
[1609527242924,0.4921663,29099.0,29087.0,0.3]
[1609527243118,0.4921663,29099.0,29088.0,0.5467804]
[1609527243421,0.4821663,29099.0,29088.0,0.5417804]
[1609527243613,0.4821663,29099.0,29086.0,0.54656504]
[1609527244424,0.48241044,29099.0,29087.0,0.995]
[1609527244622,0.48241044,29099.0,29088.0,0.7767804]
[1609527244921,0.48241044,29099.0,29089.0,0.5467804]
[1609527245329,0.48241044,29099.0,29084.0,0.5467804]
[1609527245330,0.4821663,29099.0,29084.0,0.5467804]
[1609527245728,0.33042975,29098.0,29085.0,0.285]
[1609527246025,0.00246709,29091.0,29081.0,0.0002]
[1609527246491,0.00246709,29091.0,29088.0,0.2]
[1609527246691,0.00246709,29091.0,29081.0,0.0002]
[1609527247687,0.10431709,29094.0,29081.0,0.0002]
[1609527248991,0.43499098,29094.0,29081.0,0.0002]
[1609527249195,0.33042975,29093.0,29081.0,0.0002]
[1609527249589,0.33067389,29093.0,29081.0,0.0002]
[1609527249993,0.33042975,29092.0,29081.0,0.0002]
[1609527250235,0.5,29090.0,29081.0,0.0002]
[1609527250440,0.33042975,29089.0,29081.0,0.0002]
[1609527250638,0.33042975,29087.0,29081.0,0.0002]
[1609527250841,0.40218267,29087.0,29071.0,0.5467804]
[1609527251140,0.33042975,29085.0,29071.0,0.4989804]
[1609527251436,0.33042975,29085.0,29069.0,0.53749862]
[1609527251634,0.33042975,29085.0,29069.0,0.0002]
[1609527251838,0.33067389,29085.0,29069.0,0.0002]
[1609527252037,0.52,29082.0,29069.0,0.0002]
[1609527252241,0.33042975,29082.0,29069.0,0.0002]
[1609527252636,0.33042975,29082.0,29070.0,0.08795999]
[1609527252836,0.33042975,29082.0,29070.0,0.08574399]
[1609527253039,0.33042975,29082.0,29070.0,0.0002]
[1609527253040,0.03588061,29077.0,29070.0,0.0002]
[1609527253633,0.03612475,29077.0,29070.0,0.0002]
[1609527254474,0.03612475,29077.0,29065.0,0.0004]
[1609527254475,5.65,29076.0,29063.0,0.33539198]
[1609527254673,5.65,29076.0,29064.0,0.99]
[1609527254674,0.33042975,29075.0,29064.0,0.99]
[1609527254867,0.33042975,29075.0,29065.0,0.7266209]
[1609527255069,0.33067389,29075.0,29065.0,0.7266209]
[1609527255269,0.33067389,29075.0,29063.0,0.5316209]
[1609527255673,0.31631847,29075.0,29064.0,0.99]
[1609527255876,0.00024414,29077.0,29065.0,0.8946669]
[1609527256084,0.02201338,29078.0,29067.0,3.85]
[1609527256277,0.02201338,29078.0,29068.0,2.1646669]
[1609527256475,0.01093473,29081.0,29069.0,1.7116209]
[1609527256680,0.01093473,29081.0,29070.0,2.0746669]
[1609527256884,0.01093473,29081.0,29071.0,2.0216209]
[1609527257077,0.01093473,29081.0,29072.0,2.0746669]
[1609527257278,0.01093473,29081.0,29073.0,1.7116209]
[1609527257473,0.01093473,29081.0,29074.0,2.0746669]
[1609527257682,0.01093473,29081.0,29075.0,2.0216209]
[1609527257876,0.01093473,29081.0,29076.0,1.7116209]
[1609527258081,0.01093473,29081.0,29077.0,1.7116209]
[1609527258372,0.01093473,29081.0,29078.0,0.7316209]
[1609527258572,0.01093473,29081.0,29079.0,0.455]
[1609527258782,0.01093473,29081.0,29078.0,0.31727]
[1609527259791,0.01093473,29081.0,29078.0,0.27381]
[1609527259994,4.25584712,29091.0,29077.0,0.2]
[1609527260197,0.25584712,29090.0,29077.0,0.25085287]
[1609527260690,0.25584712,29090.0,29077.0,0.05144502]
[1609527260895,0.25584712,29090.0,29077.0,0.2]
[1609527261094,0.25584712,29090.0,29076.0,0.2]
[1609527261291,0.25584712,29090.0,29071.0,0.25070267]
[1609527261551,0.77813884,29090.0,29069.0,1.6931]
[1609527261749,0.77813884,29090.0,29069.0,2.6731]
[1609527261750,0.51364713,29089.0,29069.0,2.6731]
[1609527261959,0.25584712,29088.0,29069.0,2.6731]
[1609527262153,0.25584712,29088.0,29069.0,0.2]
[1609527262352,0.77584712,29088.0,29069.0,1.18]
[1609527262658,0.25584712,29087.0,29069.0,1.18]
[1609527262849,0.25584712,29087.0,29069.0,0.2]
[1609527263051,0.25584712,29087.0,29067.0,1.18]
[1609527263394,0.03587509,29086.0,29070.0,10.2]
[1609527263591,0.14277047,29087.0,29071.0,0.2659559]
[1609527263791,0.00023205,29086.0,29071.0,0.2659559]
[1609527264192,0.14277047,29087.0,29071.0,0.2659559]
[1609527264394,0.14277047,29087.0,29072.0,0.10644678]
[1609527264792,0.00023205,29087.0,29072.0,0.10644678]
[1609527264987,0.10762262,29088.0,29072.0,0.10644678]
[1609527265190,0.10762262,29088.0,29071.0,0.17567531]
[1609527265387,0.36346974,29088.0,29071.0,0.17567531]
[1609527265588,0.88370179,29088.0,29070.0,10.0]
[1609527265899,0.88370179,29088.0,29072.0,0.0659559]
[1609527265900,0.2579,29085.0,29072.0,0.0659559]
[1609527266193,0.00023205,29087.0,29073.0,1.34]
[1609527266594,5.0,29090.0,29073.0,0.16]
[1609527266893,0.25584712,29089.0,29073.0,1.14]
[1609527267114,0.25584712,29089.0,29073.0,1.135]
[1609527267115,0.25780001,29089.0,29073.0,1.135]
[1609527267313,3.64130855,29077.0,29073.0,1.335]
[1609527267511,3.64130855,29077.0,29074.0,0.763046]
[1609527267815,3.64130855,29077.0,29074.0,0.563046]
[1609527268213,3.64130855,29077.0,29074.0,0.10232818]
[1609527268615,3.64130855,29077.0,29074.0,0.30232818]
[1609527269018,3.64130855,29077.0,29074.0,0.10232818]
[1609527269217,3.64130855,29077.0,29075.0,0.98]
[1609527269423,0.93697917,29091.0,29076.0,0.39]
[1609527269621,4.0,29089.0,29077.0,1.18]
[1609527269818,4.0,29089.0,29076.0,0.58496]
[1609527269819,0.25107917,29088.0,29076.0,0.58496]
[1609527270021,3.0,29088.0,29077.0,0.66471701]
[1609527270216,3.0,29088.0,29078.0,0.51955597]
[1609527270420,3.0,29088.0,29077.0,0.58467004]
[1609527270820,3.14253842,29088.0,29077.0,0.58467004]
[1609527271020,3.14253842,29088.0,29078.0,0.52229172]
[1609527271322,0.26130564,29087.0,29078.0,0.52229172]
[1609527271618,0.00022647,29087.0,29077.0,0.58966392]
[1609527271825,0.14276489,29088.0,29078.0,0.51347236]
[1609527272224,0.00022647,29088.0,29078.0,0.51347236]
[1609527272419,0.25780001,29089.0,29078.0,0.51347236]
[1609527272743,0.25780001,29089.0,29078.0,1.49347236]
[1609527272951,0.25780001,29089.0,29079.0,1.57347236]
[1609527273158,0.00022647,29090.0,29081.0,0.98]
[1609527273362,0.03586963,29092.0,29083.0,0.63376985]
[1609527273363,0.0310961,29092.0,29083.0,0.63376985]
[1609527273558,0.5255,29105.0,29085.0,0.83001315]
[1609527273756,0.2577,29101.0,29087.0,0.27072385]
[1609527273952,0.03586245,29102.0,29089.0,0.27072385]
[1609527274154,0.03586245,29102.0,29090.0,0.71347236]
[1609527274155,0.03086245,29102.0,29090.0,0.71347236]
[1609527274347,0.03086245,29102.0,29091.0,0.78419621]
[1609527274556,0.03086245,29102.0,29092.0,0.78419621]
[1609527274751,0.03086245,29102.0,29093.0,0.07072385]
[1609527275055,0.10365264,29105.0,29094.0,0.07072385]
[1609527275056,1.0,29104.0,29094.0,0.07072385]
[1609527275251,1.0,29104.0,29094.0,0.28582385]
[1609527275549,0.135,29103.0,29094.0,0.2151]
[1609527275745,0.135,29103.0,29095.0,0.07072385]
[1609527276354,0.36135264,29105.0,29094.0,0.28582385]
[1609527276598,1.0,29104.0,29094.0,0.90090772]
[1609527276900,0.995,29104.0,29094.0,0.70090772]
[1609527277098,0.99522121,29104.0,29094.0,0.2151]
[1609527277405,0.6871,29099.0,29094.0,0.2151]
[1609527278440,0.6871,29099.0,29092.0,0.51347236]
[1609527278648,0.6871,29099.0,29091.0,0.51347236]
[1609527278649,0.135,29098.0,29091.0,0.51347236]
[1609527278853,0.135,29098.0,29083.0,1.6855]
[1609527278854,0.39607917,29098.0,29083.0,1.4855]
[1609527279050,0.39607917,29098.0,29083.0,1.38223563]
[1609527279051,0.26107917,29097.0,29083.0,1.38223563]
[1609527279251,0.07172797,29095.0,29082.0,0.18445081]
[1609527279441,0.59172797,29095.0,29082.0,0.18445081]
[1609527279749,0.25780001,29089.0,29082.0,0.18445081]
[1609527279949,0.25780001,29089.0,29082.0,0.07706826]
[1609527280277,0.51887918,29089.0,29082.0,0.07706826]
[1609527280443,0.135,29088.0,29082.0,0.07706826]
[1609527280845,0.0358714,29086.0,29082.0,0.07706826]
[1609527281056,0.5157,29084.0,29082.0,0.18176151]
[1609527281547,0.5157,29084.0,29083.0,0.01791808]
[1609527281745,0.26107917,29083.0,29071.0,1.07824383]
[1609527281942,1.35,29084.0,29073.0,0.07072385]
[1609527282164,0.5157,29078.0,29074.0,1.24796927]
[1609527282365,0.5157,29078.0,29075.0,1.343046]
[1609527282666,0.00022121,29083.0,29076.0,1.22]
[1609527282861,0.00022121,29084.0,29076.0,1.48808517]
[1609527283064,0.00022121,29084.0,29077.0,0.26770623]
[1609527283469,0.51560001,29081.0,29072.0,0.37068105]
[1609527283659,0.50148873,29081.0,29072.0,0.37068105]
[1609527283867,0.50148873,29081.0,29073.0,0.98]
[1609527283868,0.2579,29079.0,29073.0,0.98]
[1609527284167,0.00022121,29081.0,29074.0,0.145]
[1609527284562,0.6876,29082.0,29074.0,0.145]
[1609527284763,0.6876,29082.0,29075.0,0.25811071]
[1609527284962,0.6876,29079.0,29075.0,0.25811071]
[1609527285164,0.6876,29079.0,29074.0,0.10376245]
[1609527285559,0.6876,29079.0,29071.0,0.25806712]
[1609527285762,0.6735888,29079.0,29071.0,0.25806712]
[1609527285959,0.6735888,29079.0,29072.0,0.363046]
[1609527286167,0.81612722,29079.0,29070.0,10.0]
[1609527286364,0.81634843,29079.0,29073.0,0.25798962]
[1609527286564,0.81634843,29079.0,29073.0,0.36175564]
[1609527286765,0.81634843,29079.0,29073.0,0.10376602]
[1609527287067,0.81612722,29079.0,29072.0,0.25746202]
[1609527287989,0.81634843,29079.0,29072.0,0.25746202]
[1609527288186,0.29377705,29078.0,29072.0,0.25746202]
[1609527288386,0.43631547,29078.0,29072.0,0.25746202]
[1609527288594,0.135,29077.0,29070.0,10.0]
[1609527288895,0.5158,29074.0,29071.0,0.25732287]
[1609527289691,0.5158,29074.0,29070.0,10.0]
[1609527290898,0.72931,29074.0,29070.0,10.0]
[1609527291093,0.39607917,29073.0,29070.0,9.89584765]
[1609527291294,0.135,29073.0,29070.0,9.79262529]
[1609527291729,0.27753842,29073.0,29070.0,9.79262529]
[1609527292326,0.68800001,29072.0,29070.0,9.79262529]
[1609527292528,7.585,29071.0,29070.0,9.68499429]
[1609527292728,7.84107917,29071.0,29070.0,9.68499429]
[1609527293127,7.97910917,29071.0,29070.0,9.5989861]
[1609527293463,0.52910917,29071.0,29070.0,9.5989861]
[1609527293666,0.41056842,29071.0,29070.0,9.5989861]
[1609527293970,0.66367043,29071.0,29070.0,9.5989861]
[1609527294165,1.01064043,29071.0,29070.0,9.5989861]
[1609527294367,8.46064043,29071.0,29070.0,9.56303197]
[1609527294564,0.49064043,29071.0,29070.0,9.56303197]
[1609527294770,0.49064043,29071.0,29070.0,9.52981841]
[1609527294970,0.40361759,29071.0,29070.0,9.51293029]
[1609527295570,0.13753842,29071.0,29070.0,9.51293029]
[1609527297804,0.13753842,29071.0,29070.0,10.10973629]
[1609527298104,0.14275935,29074.0,29070.0,10.33669029]
[1609527298299,0.14253842,29074.0,29070.0,9.81169029]
[1609527298500,0.40053842,29074.0,29070.0,9.73169029]
[1609527298806,4.2157,29071.0,29070.0,9.6023262]
[1609527298996,4.35823842,29071.0,29070.0,9.5973262]
[1609527299303,7.66422722,29071.0,29070.0,9.48290344]
[1609527299495,4.86422722,29071.0,29070.0,9.44165469]
[1609527300294,4.86422722,29071.0,29070.0,9.54530757]
[1609527300496,4.86422722,29071.0,29070.0,9.44165469]
[1609527300994,1.16422722,29071.0,29070.0,9.44165469]
[1609527301200,0.64422722,29071.0,29070.0,9.44165469]
[1609527301399,0.5016888,29071.0,29070.0,9.44165469]
[1609527301597,0.5016888,29071.0,29070.0,9.54435814]
[1609527302497,1.8516888,29071.0,29070.0,9.52640055]
[1609527302701,1.8516888,29071.0,29070.0,9.3878159]
[1609527302702,1.99422722,29071.0,29070.0,9.3878159]
[1609527302926,0.64422722,29071.0,29070.0,9.3878159]
[1609527303628,0.5016888,29071.0,29070.0,9.49160294]
[1609527304428,0.5016888,29071.0,29070.0,9.3878159]
[1609527304625,0.5016888,29071.0,29070.0,10.79225956]
[1609527304827,0.5016888,29071.0,29070.0,11.23530556]
[1609527305026,0.5016888,29071.0,29070.0,10.25530556]
[1609527305228,0.5016888,29071.0,29070.0,9.73530556]
[1609527305426,0.5016888,29071.0,29070.0,9.83858692]
[1609527305732,0.5016888,29071.0,29070.0,10.89858692]
[1609527306231,0.4966848,29071.0,29070.0,10.89858692]
[1609527306696,0.00022093,29074.0,29071.0,0.363046]
[1609527306886,0.51592093,29077.0,29073.0,0.363046]
[1609527307087,0.51592093,29077.0,29074.0,0.3470662]
[1609527307286,0.51592093,29077.0,29072.0,0.68024326]
[1609527307487,0.5157,29077.0,29073.0,0.08]
[1609527308184,0.4657,29077.0,29073.0,0.08]
[1609527308637,0.4657,29077.0,29072.0,0.08]
[1609527308834,0.4657,29077.0,29071.0,0.08]
[1609527308835,0.60823842,29077.0,29071.0,0.08]
[1609527309036,0.60823842,29077.0,29070.0,9.37225956]
[1609527309636,0.52,29076.0,29070.0,9.37225956]
[1609527309844,6.17,29072.0,29070.0,9.37225956]
[1609527310041,0.6877,29073.0,29070.0,9.37225956]
[1609527310042,7.07,29071.0,29070.0,9.37225956]
[1609527310473,7.97,29071.0,29070.0,9.37225956]
[1609527310774,6.55,29071.0,29070.0,9.37225956]
[1609527310973,6.69253842,29071.0,29070.0,9.37225956]
[1609527311180,7.38043843,29071.0,29070.0,9.37225956]
[1609527311374,8.28043843,29071.0,29070.0,9.37225956]
[1609527311773,7.6415176,29071.0,29070.0,9.37225956]
[1609527312273,7.38043843,29071.0,29070.0,9.37225956]
[1609527312473,0.83043843,29071.0,29070.0,9.37225956]
[1609527312981,0.83043843,29071.0,29070.0,9.45225956]
[1609527313182,0.83043843,29071.0,29070.0,9.81530556]
[1609527313580,0.83043843,29071.0,29070.0,10.06872231]
[1609527313886,0.14253842,29072.0,29070.0,10.58872231]
[1609527314077,0.14253842,29072.0,29071.0,0.363046]
[1609527314276,0.14253842,29072.0,29071.0,0.8251074]
[1609527314479,0.14253842,29072.0,29071.0,0.79533749]
[1609527314681,0.00153842,29072.0,29071.0,0.33327609]
[1609527314877,0.83023842,29073.0,29071.0,0.33327609]
[1609527315079,0.83023842,29073.0,29071.0,0.08]
[1609527315476,0.83023842,29073.0,29071.0,0.18200851]
[1609527316303,0.83023842,29073.0,29071.0,0.43530361]
[1609527316510,0.83023842,29073.0,29072.0,0.25321954]
[1609527317009,0.6877,29073.0,29072.0,0.25321954]
[1609527317205,0.6877,29073.0,29072.0,0.33321954]
[1609527317206,3.0877,29073.0,29072.0,0.33321954]
[1609527317406,3.0877,29073.0,29072.0,0.43790752]
[1609527317812,3.0877,29073.0,29072.0,0.25321954]
[1609527318014,3.6077,29073.0,29072.0,0.25321954]
[1609527318227,4.8371802,29073.0,29071.0,0.00617681]
[1609527318422,7.71107917,29072.0,29070.0,9.37225956]
[1609527318612,8.94055937,29071.0,29070.0,9.37225956]
[1609527318817,9.80055937,29071.0,29070.0,8.68435955]
[1609527319221,5.95,29070.0,29064.0,0.00618714]
[1609527319420,0.26107917,29068.0,29064.0,0.00618714]
[1609527319777,0.47289917,29066.0,29062.0,0.0065838]
[1609527319908,0.26107917,29065.0,29062.0,0.0065838]
[1609527320119,0.26107917,29065.0,29062.0,0.0004]
[1609527320312,0.26107917,29065.0,29062.0,0.10306979]
[1609527320610,1.48555937,29065.0,29062.0,0.10306979]
[1609527320816,0.25607917,29064.0,29060.0,0.0006]
[1609527321115,0.25607917,29063.0,29060.0,0.0006]
[1609527321812,7.45,29062.0,29057.0,0.00386083]
[1609527322015,5.6,29059.0,29050.0,0.0004]
[1609527322214,0.25607917,29058.0,29050.0,0.0004]
[1609527322511,0.25607917,29058.0,29050.0,0.18198778]
[1609527322811,0.24907917,29058.0,29050.0,0.0004]
[1609527323010,0.24907917,29056.0,29050.0,0.0308]
[1609527323213,0.24907917,29059.0,29050.0,1.0108]
[1609527323411,0.24907917,29059.0,29050.0,0.0308]
[1609527323852,3.9,29058.0,29048.0,1.24913187]
[1609527324055,3.9,29058.0,29048.0,0.9804]
[1609527324056,0.24907917,29054.0,29048.0,0.9804]
[1609527324249,0.24907917,29054.0,29048.0,0.10405909]
[1609527324447,0.24907917,29054.0,29048.0,1.08405909]
[1609527325049,0.24907917,29054.0,29049.0,0.98]
[1609527325547,0.24907917,29054.0,29048.0,0.05405909]
[1609527325855,0.08,29053.0,29047.0,0.0002]
[1609527326159,0.24907917,29051.0,29043.0,0.31289161]
[1609527326348,0.24907917,29051.0,29043.0,0.20924083]
[1609527326549,0.08,29050.0,29043.0,0.20924083]
[1609527326751,0.08,29050.0,29043.0,0.31270085]
[1609527326955,0.08,29050.0,29042.0,0.0004]
[1609527327160,0.24907917,29047.0,29042.0,0.0004]
[1609527327378,0.52437917,29047.0,29042.0,0.0004]
[1609527327583,7.49907917,29046.0,29035.0,0.01]
[1609527327883,0.24907917,29045.0,29036.0,0.10443551]
[1609527328186,0.24907917,29043.0,29033.0,0.0008]
[1609527328371,0.24907917,29043.0,29034.0,0.9804]
[1609527328773,0.24907917,29043.0,29029.0,0.50766382]
[1609527328978,0.24907917,29041.0,29033.0,0.97214238]
[1609527329183,0.24907917,29040.0,29033.0,0.97214238]
[1609527329476,0.24907917,29040.0,29033.0,0.93114238]
[1609527329679,0.5164,29041.0,29033.0,0.93114238]
[1609527329878,0.5164,29041.0,29033.0,0.92114238]
[1609527330285,0.24907917,29040.0,29033.0,0.92114238]
[1609527330479,0.24907917,29040.0,29034.0,0.363046]
[1609527330684,0.5164,29041.0,29035.0,0.92114238]
[1609527330880,0.5164,29041.0,29035.0,0.91614238]
[1609527331084,0.5164,29041.0,29036.0,0.13]
[1609527331283,0.5164,29041.0,29037.0,0.91614238]
[1609527331483,0.5164,29041.0,29036.0,0.10241044]
[1609527331691,2.59080838,29040.0,29037.0,0.91614238]
[1609527331885,1.14907917,29039.0,29037.0,0.91614238]
[1609527332091,1.14907917,29039.0,29032.0,0.0006]
[1609527332092,0.24907917,29038.0,29034.0,0.363046]
[1609527332480,0.24907917,29038.0,29034.0,0.358046]
[1609527332681,0.24907917,29038.0,29032.0,0.0006]
[1609527332897,0.24907917,29038.0,29032.0,0.91674238]
[1609527333093,0.24907917,29038.0,29033.0,0.363913]
[1609527333302,0.007293,29037.0,29032.0,0.91674238]
[1609527333497,0.24907917,29038.0,29032.0,0.0006]
[1609527333696,0.24907917,29038.0,29032.0,0.91674238]
[1609527333998,0.24907917,29038.0,29033.0,0.358913]
[1609527334200,0.007293,29037.0,29033.0,0.91614238]
[1609527334605,0.24907917,29038.0,29034.0,0.135]
[1609527334804,0.012292,29037.0,29035.0,0.91614238]
[1609527335103,0.24907917,29039.0,29036.0,0.363919]
[1609527335306,0.5164,29041.0,29038.0,0.363919]
[1609527335504,0.5164,29041.0,29038.0,1.4187787]
[1609527335710,0.9,29045.0,29039.0,0.91614238]
[1609527335908,0.26137117,29044.0,29038.0,1.4187787]
[1609527336206,0.26137117,29044.0,29032.0,0.2006]
[1609527336408,0.76527917,29044.0,29033.0,0.70263632]
[1609527336698,0.26137117,29043.0,29034.0,1.6187787]
[1609527336829,0.26137117,29043.0,29035.0,0.70263632]
[1609527337038,0.9,29045.0,29036.0,1.06655532]
[1609527337335,0.24907917,29048.0,29037.0,1.9437787]
[1609527337530,0.24907917,29048.0,29038.0,1.11614238]
[1609527337734,0.5162,29044.0,29039.0,1.28006138]
[1609527337933,0.5162,29044.0,29038.0,0.2]
[1609527337934,0.5162,29044.0,29041.0,0.363919]
[1609527338234,0.5162,29044.0,29043.0,0.363919]
[1609527338432,0.528492,29044.0,29042.0,0.19429]
[1609527338674,0.012292,29043.0,29042.0,0.18929]
[1609527338870,0.5144808,29044.0,29042.0,0.18929]
[1609527339475,0.5144808,29044.0,29035.0,0.41117]
[1609527339680,0.5144808,29044.0,29035.0,0.2]
[1609527339880,0.03346812,29043.0,29032.0,0.2006]
[1609527340078,0.6884,29042.0,29033.0,1.16646704]
[1609527340281,0.24907917,29041.0,29033.0,1.16646704]
[1609527340580,0.03346812,29040.0,29033.0,0.25032466]
[1609527340777,0.28254729,29041.0,29032.0,0.0006]
[1609527341178,0.03346812,29040.0,29032.0,0.0006]
[1609527341381,0.03346812,29041.0,29032.0,0.0006]
[1609527341776,0.03346812,29041.0,29032.0,0.91674238]
[1609527341982,0.28254729,29041.0,29033.0,0.91614238]
[1609527342395,0.03346812,29040.0,29033.0,0.91614238]
[1609527342592,0.03346812,29041.0,29033.0,0.91614238]
[1609527342790,0.03346812,29041.0,29034.0,0.155]
[1609527342995,0.03346812,29041.0,29035.0,0.91614238]
[1609527343202,0.6884,29042.0,29036.0,0.16]
[1609527343495,0.6884,29042.0,29036.0,1.07614238]
[1609527343697,0.6884,29042.0,29036.0,0.91614238]
[1609527343899,0.24907917,29041.0,29034.0,0.2]
[1609527344212,0.24907917,29041.0,29032.0,0.0006]
[1609527344596,0.03346812,29040.0,29032.0,0.0006]
[1609527344794,0.03346812,29040.0,29032.0,0.91674238]
[1609527344997,0.03346812,29041.0,29031.0,0.91254238]
[1609527345195,0.03346812,29041.0,29032.0,0.135]
[1609527345391,0.03346812,29041.0,29032.0,0.39571184]
[1609527345592,0.03346812,29041.0,29032.0,1.29245422]
[1609527345894,0.03346812,29041.0,29032.0,1.03174238]
[1609527345895,0.28254729,29041.0,29032.0,1.03174238]
[1609527346096,0.28254729,29041.0,29031.0,0.91254238]
[1609527346297,0.28254729,29041.0,29032.0,0.91174238]
[1609527346501,0.03346812,29040.0,29032.0,0.91174238]
[1609527346700,0.6884,29042.0,29033.0,0.92105944]
[1609527346903,0.6884,29043.0,29034.0,1.5893787]
[1609527347102,0.32091854,29051.0,29035.0,1.58874214]
[1609527347304,0.07183937,29051.0,29041.0,1.08674238]
[1609527347511,0.07183937,29051.0,29044.0,0.88674238]
[1609527347512,0.03591532,29051.0,29044.0,0.88674238]
[1609527347711,0.03591532,29051.0,29047.0,0.88674238]
[1609527347944,0.01797024,29058.0,29050.0,0.563835]
[1609527348133,0.01797024,29058.0,29051.0,1.38487486]
[1609527348327,0.516,29060.0,29052.0,0.86196748]
[1609527348533,0.516,29060.0,29053.0,0.49738]
[1609527348731,0.516,29060.0,29054.0,0.86196748]
[1609527348932,0.516,29060.0,29055.0,0.49813248]
[1609527349129,0.516,29060.0,29056.0,0.363835]
[1609527349325,0.516,29060.0,29056.0,1.25057738]
[1609527349629,0.516,29060.0,29058.0,0.363835]
[1609527350129,0.89610407,29065.0,29058.0,0.363835]
[1609527350329,0.89610407,29065.0,29057.0,0.70313248]
[1609527350523,0.89610407,29065.0,29056.0,0.49813248]
[1609527350724,0.89610407,29065.0,29058.0,0.0011055]
[1609527351123,0.5159,29062.0,29058.0,0.0011055]
[1609527351322,0.5159,29062.0,29059.0,0.518105]
[1609527351323,0.51433291,29062.0,29059.0,0.518105]
[1609527351774,0.51433291,29062.0,29059.0,0.15427]
[1609527351972,0.50933291,29062.0,29059.0,0.15427]
[1609527352879,0.50933291,29062.0,29058.0,0.0011055]
[1609527353927,0.50933291,29062.0,29059.0,0.363835]
[1609527354131,0.50933291,29062.0,29059.0,0.525485]
[1609527354326,0.50933291,29062.0,29060.0,0.185]
[1609527354732,0.61334537,29062.0,29061.0,0.363835]
[1609527354924,0.50933291,29062.0,29061.0,0.363835]
[1609527355560,0.50933291,29062.0,29059.0,0.16165]
[1609527355962,0.50433291,29062.0,29054.0,0.363835]
[1609527356558,0.50433291,29062.0,29053.0,0.363835]
[1609527356861,0.50433291,29062.0,29054.0,1.03674238]
[1609527357064,0.50433291,29062.0,29056.0,0.363835]
[1609527357259,0.50433291,29062.0,29057.0,0.88674238]
[1609527357864,0.50433291,29062.0,29056.0,0.363835]
[1609527358067,0.50433291,29062.0,29057.0,0.88674238]
[1609527358271,0.0004,29071.0,29058.0,0.363835]
[1609527358470,0.0004,29071.0,29059.0,1.56755702]
[1609527358669,0.0004,29071.0,29061.0,0.363835]
[1609527358972,0.0004,29071.0,29063.0,0.363835]
[1609527359166,0.0004,29071.0,29064.0,1.32221687]
[1609527359366,0.0004,29071.0,29065.0,1.76872869]
[1609527359564,0.0004,29071.0,29067.0,0.363835]
[1609527359963,0.0004,29071.0,29066.0,0.19523]
[1609527361396,0.0004,29071.0,29066.0,1.08197238]
[1609527361602,0.0004,29071.0,29067.0,1.04674238]
[1609527361802,0.0004,29071.0,29067.0,0.16]
[1609527362000,0.0004,29071.0,29066.0,0.19523]
[1609527362996,0.0004,29071.0,29067.0,0.363835]
[1609527363603,0.0004,29071.0,29069.0,0.363835]
[1609527363798,0.0004,29071.0,29070.0,0.185]
[1609527364301,0.0004,29071.0,29069.0,0.14962]
[1609527364500,0.0004,29071.0,29070.0,0.363835]
[1609527366063,0.0004,29071.0,29070.0,1.25057738]
[1609527366261,0.0004,29071.0,29070.0,1.47057738]
[1609527366464,0.0004,29071.0,29070.0,0.583835]
[1609527366758,0.0004,29071.0,29070.0,1.25057738]
[1609527367215,0.0004,29071.0,29070.0,0.363835]